Cogmind - Beta 17 @@@ ROGUE MODE // 2026.06.24 @ 10:36:06 Player: Artackni Result: Destroyed by K8-ZE3(R) with Subdweller Machine Gun Performance ------------- Evolutions (0) 0 Regions Visited (1) 200 Robots Destroyed (15) 75 Value Destroyed (286) 286 Prototype IDs (0) 0 Alien Tech Used (0) 0 Bonus (0) 0 TOTAL SCORE: 561 Bonus ------- None Cogmind --------- Core Integrity 0/250 Matter 300/300 Energy 100/100 System Corruption 0% Temperature Cool (0) Movement Rolling (200) Ox8 Location -10/Materials Parts ------- > --- POWER (1) -------- (None) > --- PROPULSION (2) --- Wheel > --- UTILITY (2) ------ Improved Heat Sink Huge Storage Unit > --- WEAPON (2) ------- Medium Laser > --- INVENTORY (25) --- Ion Engine Wheel Wheel Small Storage Unit Large Storage Unit Structural Scanner Seismic Detector Seismic Detector ECM Suite Beam Cannon Mining Laser Peak State ------------ > --- POWER ------------ Light Ion Engine > --- PROPULSION ------- Wheel Wheel > --- UTILITY ---------- Large Storage Unit Seismic Detector > --- WEAPON ----------- Medium Laser Light Assault Rifle > --- INVENTORY -------- Ion Engine Wheel Wheel Wheel Small Storage Unit Structural Scanner Seismic Detector Seismic Detector Beam Cannon Mining Laser [Rating: 8] Favorites ----------- Power Ion Engine Engine Ion Engine Propulsion Wheel Wheel Wheel Utility Seismic Detector Device Seismic Detector Storage Huge Storage Unit Weapon Medium Laser Energy Gun Medium Laser Ballistic Gun Light Assault Rifle Build | -11 -10 ------- Run | Yrd Mat Slots Evolved . | . . Power . | . . Propulsion . | . . Utility . | . . Weapon . | . . Parts Attached 13 | 6 7 Power 2 | 1 1 Engine 2 | 1 1 Core . | . . Reactor . | . . Propulsion 3 | 2 1 Treads . | . . Leg . | . . Wheel 3 | 2 1 Hover . | . . Flight . | . . Utility 5 | 1 4 Device 2 | . 2 Storage 3 | 1 2 Processor . | . . Hackware . | . . Protection . | . . Artifact . | . . Weapon 3 | 2 1 Energy Gun 2 | 1 1 Energy Cannon . | . . Ballistic Gun 1 | 1 . Ballistic Cannon . | . . Launcher . | . . Special Weapon . | . . Impact Weapon . | . . Slashing Weapon . | . . Piercing Weapon . | . . Special Melee Weapon . | . . Unidentified Prototypes . | . . Parts Lost 6 | . 6 Power 1 | . 1 Propulsion 2 | . 2 Utility 1 | . 1 Weapon 2 | . 2 Highest Loss Streak 3 | . 3 To Critical Strikes . | . . Average Backups 8 | 2 10 Power . | . 1 Propulsion 2 | . 2 Utility 4 | . 4 Weapon 1 | . 1 Tool/Special . | . . Unused Backups 9 | . 9 Power 1 | . 1 Propulsion 2 | . 2 Utility 4 | . 4 Weapon 2 | . 2 Tool/Special . | . . Average Slot Usage (%) 80 | . 80 Engine 7 | . 7 Wheel 21 | . 21 Device 11 | . 11 Storage 14 | . 14 Energy Gun 13 | . 13 Ballistic Gun 10 | . 10 Peak Build Rating 8 | 6 8 Average Rating 6 | 5 6 On Entrance 3 | . 6 Avg Prop Armor Cover (%) . | . . Naked Turns . | . . Heaviest Build 87 | 13 87 Greatest Support 20 | 20 20 Greatest Overweight (x) 8 | 1 8 Average Overweight (x) 2 | . 3 Largest Inventory Capacity 25 | 8 25 Average Capacity 18 | 7 19 Most Carried 14 | 7 14 Average Carried 9 | 2 10 Final Capacity 25 | 8 25 Final Carried 11 | 7 11 Class Distribution -------------------- 100% | Mutant Dominant Class ---------------- Mutant | -10/Materials Resources | -11 -10 ----------- Run | Yrd Mat Matter Collected 411 | 271 140 Remotely . | . . Salvage Created 394 | 86 308 Parts 28 | 15 13 Haulers Intercepted . | . . Recyclers Shooed . | . . Parts Field Recycled . | . . Retrieved Matter . | . . Parts Self-Destructed . | . . Prevented . | . . Parts Restored . | . . Kills | -11 -10 ------- Run | Yrd Mat Combat Hostiles Destroyed 10 | . 10 Guns 8 | . 8 AOE 2 | . 2 Classes Destroyed 4 | 1 3 Tunneler 4 | 4 . Watcher 1 | . 1 Swarmer 6 | . 6 Grunt 4 | . 4 Best Kill Streak 4 | 4 3 Combat Bots Only 3 | . 3 Max Kills in Single Turn 3 | 1 3 Gunslinging 1 | . 1 Exploded 2 | . 2 Melee . | . . Uniques/NPCs Destroyed . | . . Combat | -11 -10 -------- Run | Yrd Mat Hostile Shots Fired 70 | . 70 Missed 18 | . 18 Hits 52 | . 52 Projectile 52 | . 52 Critical Strikes 1 | . 1 Damage Taken 629 | . 629 Core 252 | . 252 Absorbed by Shields . | . . Core Remaining (%) 100 | 100 . Volleys Fired 51 | 11 40 Largest 2 | 2 2 Hottest 100 | 70 100 Shots Fired 96 | 22 74 Gun 96 | 22 74 Cannon . | . . Launcher . | . . Special . | . . Kinetic 41 | 11 30 Thermal 55 | 11 44 Explosive . | . . Electromagnetic . | . . Robot Hit Streak 9 | 3 9 Robot Miss Streak 3 | 2 3 Penetration Max . | . . Secondary Targets 1 | . 1 Max Gunslinging Chain 1 | . 1 Shots Hit Robots 57 | 11 46 Core Hits 26 | 5 21 Critical Kills . | . . Critical Parts Destroyed . | . . Critical Strikes 7 | 2 5 Burn 7 | 2 5 Melee Attacks . | . . Impact . | . . Slashing . | . . Piercing . | . . Sneak Attacks . | . . Combat Hostiles . | . . Follow-up Attacks . | . . Damage Inflicted 793 | 118 675 Guns 616 | 118 498 Cannons . | . . Explosions 177 | . 177 Melee . | . . Ramming . | . . Kinetic 169 | 31 138 Thermal 447 | 87 360 Explosive . | . . Electromagnetic 177 | . 177 Impact . | . . Slashing . | . . Piercing . | . . Highest Corruption . | . . Average Corruption . | . . Corruption Purged . | . . Corruption Blocked . | . . Overload Shots . | . . Overflow Damage 4 | . 4 Projectiles . | . . Explosions 4 | . 4 Melee . | . . Knockbacks . | . . Impact . | . . Kinetic . | . . Secondary . | . . Self-Inflicted Damage . | . . Shots . | . . Rammed . | . . Targets Rammed . | . . Kicked . | . . Crushed . | . . Highest Temperature 148 | 90 148 Average Temperature 46 | 42 47 Received Heat Transfer 270 | . 270 Siege Activations . | . . Martial Activations . | . . Shielding Activations . | . . Robots Disrupted . | . . Combat Hostiles . | . . Robots Corrupted . | . . Combat Hostiles . | . . Parts Fried . | . . Impact Corruptions . | . . Robots Melted . | . . Combat Hostiles . | . . Parts Melted 7 | 2 5 Heat Transferred 1850 | 407 1443 Parts Sabotaged . | . . Parts Stolen . | . . Parts Stripped . | . . Power Chain Reactions 1 | . 1 Alert | -11 -10 ------- Run | Yrd Mat Maximum Alert Level . | . . Low Security (%) 100 | 100 100 Level 1 . | . . Level 2 . | . . Level 3 . | . . Level 4 . | . . Level 5 . | . . High Security . | . . Max Security . | . . Peak Influence 120 | 10 120 Initial 3 | . 3 Average 40 | 2 47 Influence Increases 317 | 20 297 Destroy 0b10 Robot/C 200 | . 200 Destroy 0b10 Robot/NC 25 | 20 5 Destroy Leader 42 | . 42 Disable Machine 30 | . 30 Destroy Structure 5 | . 5 Lose Combat Pursuer 15 | . 15 Influence Decreases 245 | 15 230 Entered New Map 2 | . 2 Time Decay 213 | 15 198 Lost Part 30 | . 30 Squads Dispatched 1 | . 1 Investigation . | . . Extermination . | . . Reinforcement 1 | . 1 Assault . | . . Garrison . | . . Intercept . | . . Searches Triggered . | . . Construction Impeded . | . . Haulers Reinforced . | . . Active Scanning Responses . | . . Cargo Convoy Interrupts . | . . Stealth | -11 -10 --------- Run | Yrd Mat Distress Signals 2 | . 2 Communications Jammed . | . . Distress Signals . | . . Times Spotted 17 | . 17 Peak Tracking Total 4 | . 4 Tactical Retreats 1 | . 1 Traps | -11 -10 ------- Run | Yrd Mat Traps Triggered 4 | . 4 Indirectly . | . . Trap Hack Attempts . | . . Triggered . | . . Disarmed . | . . Reprogrammed . | . . Reused . | . . Traps Extracted . | . . Installed . | . . Triggered . | . . Machines | -11 -10 ---------- Run | Yrd Mat Machines Disabled 2 | . 2 Max in Single Turn 2 | . 2 Machines Repaired . | . . Machines Dismantled . | . . Machines Sabotaged . | . . Overloaded Fab Kills . | . . Hacking | -11 -10 --------- Run | Yrd Mat Machines Accessed 1 | . 1 Terminals 1 | . 1 Fabricators . | . . Repair Stations . | . . Recycling Units . | . . Scanalyzers . | . . Garrison Access . | . . Total Hacks 2 | . 2 Successful 1 | . 1 Failed 1 | . 1 Catastrophic 1 | . 1 Database Lockouts . | . . Manual 2 | . 2 Terminals 2 | . 2 Fabricators . | . . Repair Stations . | . . Recycling Units . | . . Scanalyzers . | . . Garrison Access . | . . Terminal Hacks . | . . Fabricator Hacks . | . . Repair Station Hacks . | . . Recycling Unit Hacks . | . . Scanalyzer . | . . Garrison Access Hacks . | . . Unauthorized Hacks 1 | . 1 Terminals 1 | . 1 Skim 1 | . 1 Fabricators . | . . Repair Stations . | . . Recycling Units . | . . Scanalyzers . | . . Garrison Access . | . . Data Cores Recovered . | . . Used . | . . Hacking Detections 1 | . 1 Full Trace Events . | . . Feedback Events . | . . Feedback Blocked . | . . Robot Schematics Acquired . | . . Robots Built . | . . Authchips . | . . Time . | . . Total Robot Build Rating . | . . Part Schematics Acquired . | . . Parts Built . | . . Authchips . | . . Time . | . . Total Part Build Rating . | . . Part Studies Acquired . | . . Parts Repaired . | . . Time . | . . Parts Recycled . | . . Recycled Matter . | . . Retrieved Matter . | . . Retrieved Components . | . . Parts Scanalyzed . | . . Part Schematics Acquired . | . . Parts Damaged . | . . Bothacking | -11 -10 ------------ Run | Yrd Mat Used RIF Installer . | . . Robots Hacked . | . . Non-combat . | . . Combat . | . . Robot Hacks Applied . | . . Relay Couplers Released . | . . Fabnet Peak Effective % . | . . Robots Rewired . | . . Allies Hacked . | . . Hacks Repelled . | . . Allies | -11 -10 -------- Run | Yrd Mat Total Allies . | . . Largest Group . | . . Highest-Rated Group . | . . Highest-Rated Ally . | . . Total Orders . | . . Ally Attacks . | . . Total Damage . | . . Kills . | . . Allies Corrupted . | . . Allies Melted . | . . Intel | -11 -10 ------- Run | Yrd Mat Active Infowar (turns) 310 | . 310 Seismic 310 | . 310 Robot Analysis Total . | . . Derelict Logs Recovered . | . . Drone Launches . | . . Drone Recoveries . | . . Exploration | -11 -10 ------------- Run | Yrd Mat Turns Passed 650 | 96 554 Spaces Moved 376 | 62 314 Core 6 | 6 . Treads . | . . Legs . | . . Wheels 370 | 56 314 Hover . | . . Flight . | . . Fastest Speed 50 | 50 80 Average Speed 117 | 79 125 Slowest Speed 200 | 100 200 Overloaded Moves . | . . Propulsion Burnouts . | . . Robots Hopped . | . . Potential Cave-ins . | . . Cave-ins Triggered . | . . Exploration Rate (%) 24 | 5 44 Regions Visited 1 Branch Regions . Pre-discovered Areas . | . . Known Exits Taken . | . . Unknown Exits Taken 1 | 1 . Scrap Searched . | . . Spaces Dug . | . . Terrain Destroyed 4 | . 4 Melee . | . . Projectile . | . . AOE 4 | . 4 Terrain Rammed . | . . Walls Destroyed . | . . Machines Disabled . | . . Actions | -11 -10 --------- Run | Yrd Mat Total 487 | 86 401 Wait 27 | . 27 Move 375 | 61 314 Hop . | . . Pick Up 14 | 8 6 Fast Attach 13 | 5 8 Attach 5 | 1 4 Detach . | . . Swap 2 | . 2 Drop . | . . Fire 51 | 11 40 Melee . | . . Ram . | . . Kick . | . . Crush . | . . Escape Stasis . | . . Rewire . | . . Trap . | . . Miscellaneous . | . . Route ------- -11/Scrapyard -10/Materials (discovered 2 exits: [*Mat] / [*Min]) History --------- Turn | Location | Event 5 | -11/Scrapyard | Discovered new exit (range 16) 97 | -11/Scrapyard | Entered Materials 303 | -10/Materials | Build established: Mutant 331 | -10/Materials | Discovered new exit (range 13) 457 | -10/Materials | Discovered new exit (range 13) 465 | -10/Materials | Lost 3 parts (1p1n1u) 527 | -10/Materials | Core integrity fell below 50% 542 | -10/Materials | Core integrity fell below 20% 570 | -10/Materials | Lost 3 parts (1n2w) 597 | -10/Materials | Derelicts attacked the area 651 | -10/Materials | Destroyed by K8-ZE3(R) with Subdweller Machine Gun Last Messages --------------- 00558_ U-05 Engineer lays Concrete. 00561_ U-05 Engineer destroyed. 00561_ R-06 Scavenger collects Terrain Scanner. 00562_ U-05 Engineer builds a Wall. 00566_ U-05 Engineer lays Concrete. 00571_ Aluminum Leg melted. 00571_ G-34 Mercenary destroyed. 00571_ U-05 Engineer lays Concrete. 00574_ K-01 Serf collects debris. 00575_ U-05 Engineer lays Concrete. 00577_ K-01 Serf collects debris. 00577_ U-05 Engineer lays Concrete. 00581_ K-01 Serf collects debris. 00581_ U-05 Engineer lays Concrete. 00584_ K-01 Serf collects debris. 00585_ U-05 Engineer lays Concrete. 00594_ K-01 Serf collects debris. 00597_ ALERT: Derelict incursion detected, dispatching patrols to target area. 00641_ T-07 Excavator destroyed. Map ----- +----------------------------------------------------+ | | | ????????????????????????????????????? | | ????????????????????????????????????? | | ????????????????????????????????????? | | ????????????????????????????????????? | | ????????????????????????????????????? | | ????????????????????????????????????? | | ???????????#####????????????????????? | | ??????????##"""##??????????????####?? | | ?????????##"!!!"##????????????# #?? | | ?????????#"" ""#????????????# < #?? | | ?????????# #????????????# #?? | | ?????????# < #????????????+ #?? | | ?????????# #????????????# #?? | | ?????????# #????????????# #?? | | ??????????# #?????????????# #?? | | ??########## ##?????????????# #? | | ??# !** #?# #??????????????# # | | ??# !*! #?# #??????????????# # | | ??# ** #?# #??????????????# + ? | | ??# ### ##?????????????# #?? | | ??# = ## ############### #?? | | ??# ## #?? | | ??###+##+## " ########## #?? | | ????# R #?# # ### | | ????#+##=## @ ##+###?# """ # # | | ??? #%######## ??# """ + # | | ?# "" #=#??????# """ # """ # # | | ?# Y" # ###????# """ # # %+[ | | ?# "" # # #????# """ # # # | | ?# # + #????# ######## # | | ?# # # #????# #??????# # | | ?# # ###????########??????# # | | ?####### ########?????????????# # | | ???????# ## #?????????????# ### | | ????#### ## #?????????????# #?? | | ????# #???????? ????# #?? | | ????# ## #???????? ""??# #? | | ????# #? #???? "" """?# # | | ????# #?# #??????? """ # # | | ????# #?# #??????????? + + ? | | ????#+##+### #??????????????# % #?? | | ????# # #??????????????# #?? | | ????# "# ################ #?? | | ????# T# #?? | | ????# "# = % #?? | | ????# + #?? | | ????# # ##+############# #?? | | ????######## # #???????# #?? | | ???????????# # #???????# #?? | +----------------------------------------------------+ Best States ------------- Heat Dissipation 39 Energy Generation 10 Energy Capacity 250 Matter Stores 300 Matter Capacity 300 Sight Range 16 Terrain Scan Density 10 Evasion (%) 44 Item Schematics ----------------- None Robot Schematics ------------------ None Fabricated ------------ Nothing Repaired ---------- Nothing Studied --------- None Alien Tech Used ----------------- None Achievements -------------- None Challenges ------------ None Game ------ Seed DynamicGammaScreen Manual? 0 Play Time 00:08:04 Cumulative 241.6 hours Start 2026.06.24 @ 10:30:54 End 2026.06.24 @ 10:36:06 Sessions 1 Manual Loads 0 Difficulty Rogue Special Mode None Game No. 117 Rogue 117 Adventurer 0 Explorer 0 Win Type - Total 13 Types 10/1/1/0/0/0/0/0/0/1 Lore% 75 Gallery% 71 Achievement% 69 Wizard Run 0 Options --------- Layout 0 ASCII 0 Keyboard 1 Movement Arrows Keybinds 0 Fullscreen 2 Font 18/SmallcapsGlow Map View 76x50 Zoom Use 0% Tactical HUD 1 Map Filters NONE Filters NONE Steam 1 RUN: e0006408-6389-42e9-a901-3f994fd8756c